bitfinex-derivatives/quotes_SOLF0:USTF0_20240815
["timestamp","ask_amount","ask_price","bid_price","bid_amount"]
[1723747091193,3.605,138.68,138.64,3.6059]
[1723747091389,3.605,138.68,138.61,11.6512]
[1723747091590,30.99,138.71,138.61,11.6512]
[1723747091892,30.99,138.68,138.61,9.0]
[1723747092090,30.99,138.68,138.57,3.9348]
[1723747092291,30.99,138.68,138.57,34.9248]
[1723747092484,0.04943732,138.67,138.65,0.04578355]
[1723747092689,0.04943732,138.67,138.57,3.9348]
[1723747092690,30.99,138.66,138.57,3.9348]
[1723747093693,39.63,138.71,138.57,34.9248]
[1723747093890,30.99,138.73,138.59,30.99]
[1723747094288,0.05457999,138.63,138.6,0.05410477]
[1723747094685,30.99,138.73,138.6,8.64]
[1723747095090,0.0493263,138.63,138.62,3.6064]
[1723747095389,30.99,138.73,138.62,3.6064]
[1723747095587,30.99,138.73,138.62,3.6063]
[1723747095791,0.04567223,138.64,138.61,0.05410747]
[1723747095991,30.99,138.68,138.57,3.9348]
[1723747096198,0.04836485,138.64,138.61,0.05128028]
[1723747097201,3.6064,138.63,138.61,0.05128028]
[1723747098995,3.6064,138.62,138.61,0.05128028]
[1723747100695,0.04836485,138.64,138.61,0.05128028]
[1723747101200,0.04836485,138.64,138.62,30.99]
[1723747101398,1.0,138.72,138.62,30.99]
[1723747101702,30.99,138.76,138.65,30.99]
[1723747101895,3.6037,138.73,138.65,30.99]
[1723747102093,30.99,138.76,138.63,8.64]
[1723747102301,30.99,138.76,138.63,12.20164336]
[1723747102597,30.99,138.76,138.63,8.64]
[1723747102799,0.04571417,138.71,138.68,0.04604404]
[1723747102991,3.6045,138.7,138.68,0.04604404]
[1723747103193,0.04571417,138.71,138.68,0.04604404]
[1723747104294,0.04571417,138.71,138.7,3.6043]
[1723747105701,0.04571417,138.71,138.68,0.04604404]
[1723747106502,3.64991417,138.71,138.68,0.04604404]
[1723747106802,0.04571417,138.71,138.68,0.04604404]
[1723747107502,3.64991417,138.71,138.68,0.04604404]
[1723747107899,0.04571417,138.71,138.68,0.04604404]
[1723747108091,3.64991417,138.71,138.68,0.04604404]
[1723747108804,0.04571417,138.71,138.7,3.6043]
[1723747109394,30.99,138.8,138.68,31.03604404]
[1723747109597,30.99,138.83,138.72,30.99]
[1723747109796,3.6019,138.8,138.73,8.64]
[1723747109996,8.64,138.84,138.77,3.6025]
[1723747110196,3.6016,138.81,138.77,3.6025]
[1723747110494,8.64,138.84,138.77,3.6025]
[1723747110693,3.602,138.8,138.76,3.6027]
[1723747111004,3.602,138.8,138.78,0.05039955]
[1723747111304,30.99,138.85,138.78,0.05039955]
[1723747111497,30.99,138.87,138.78,0.05039955]
[1723747111799,77.58850006,138.9,138.76,1.2914]
[1723747112010,30.99,138.87,138.81,0.04996016]
[1723747112204,30.99,138.89,138.83,3.6009]
[1723747112504,30.99,138.89,138.85,0.04967352]
[1723747112805,3.5998,138.88,138.84,3.6004]
[1723747113199,30.99,138.89,138.86,0.05209437]
[1723747113401,3.5999,138.87,138.86,0.05209437]
[1723747113603,30.99,138.89,138.81,1.3167]
[1723747113799,30.99,138.89,138.85,0.05035325]
[1723747114001,3.6003,138.86,138.85,0.05035325]
[1723747114603,30.99,138.87,138.78,8.64]
[1723747115006,3.6007,138.84,138.81,3.6013]
[1723747115209,30.99,138.87,138.81,3.6013]
[1723747115404,30.99,138.87,138.78,8.64]
[1723747115605,30.99,138.87,138.77,1.3097]
[1723747115806,0.05070885,138.84,138.81,0.05519068]
[1723747116314,0.0514951,138.84,138.81,0.046238]
[1723747118108,0.0514951,138.84,138.83,3.601]
[1723747121415,8.64,138.93,138.82,30.99]
[1723747121719,30.99,138.95,138.83,8.42]
[1723747122517,30.99,138.93,138.83,8.42]
[1723747122716,30.99,138.91,138.83,8.42]
[1723747122912,30.99,138.89,138.88,0.048531]
[1723747123115,30.99,138.89,138.77,9.7297]
[1723747123323,3.6008,138.84,138.77,9.7297]
[1723747123518,30.99,138.89,138.8,3.6016]
[1723747124019,3.6008,138.84,138.77,9.7297]
[1723747124217,30.99,138.89,138.77,9.7297]
[1723747124520,3.6005,138.85,138.83,0.05160952]
[1723747124718,0.04768508,138.86,138.83,0.05160952]
[1723747125917,3.6006,138.85,138.83,0.05160952]
[1723747126117,0.04768508,138.86,138.83,0.05160952]
[1723747126318,30.99,138.96,138.84,34.50916691]
[1723747126628,30.99,138.96,138.85,1.3407]
[1723747127015,3.5987,138.92,138.89,3.5992]
[1723747127725,3.599,138.91,138.88,3.5995]
[1723747127927,30.99,138.93,138.89,0.05421932]
[1723747128114,30.99,138.91,138.83,8.42]
[1723747128422,30.99,138.91,138.8,1.2602]
[1723747128822,3.5999,138.88,138.8,1.2602]
[1723747129221,30.99,138.91,138.8,1.2602]
[1723747129518,30.99,138.94,138.81,30.99]
[1723747129719,0.04725727,138.85,138.83,0.04591244]
[1723747129926,0.04725727,138.85,138.84,3.6007]
[1723747130221,30.99,138.93,138.82,3.64359354]
[1723747130422,3.5993,138.9,138.81,30.99]
[1723747130619,3.5993,138.9,138.83,0.05105893]
[1723747130926,0.04775038,138.86,138.83,0.05105893]
[1723747131326,0.04775038,138.86,138.85,3.6004]
[1723747131922,1.0,138.95,138.89,3.5993]
[1723747132422,3.598,138.95,138.88,30.99]
[1723747132922,30.99,138.98,138.86,32.267]
[1723747133113,30.99,138.96,138.9,0.05272559]
[1723747133319,30.99,138.98,138.9,0.05272559]
[1723747133626,30.99,138.98,138.88,30.99]
[1723747133818,30.99,138.98,138.93,0.04752967]
[1723747134015,3.598,138.95,138.93,0.04752967]
[1723747134220,30.99,138.98,138.93,0.04752967]
[1723747134619,3.5981,138.95,138.93,0.04752967]
[1723747135118,3.5977,138.96,138.93,3.64592967]
[1723747135320,30.99,138.98,138.93,3.64592967]
[1723747135821,3.5979,138.95,138.93,0.04752967]
[1723747136122,30.99,138.98,138.93,0.04752967]
[1723747136620,30.99,139.0,138.93,0.04752967]
[1723747136819,3.5975,138.97,138.94,3.598]
[1723747137124,30.99,139.0,138.94,3.598]
[1723747137327,3.5976,138.96,138.94,0.0482477]
[1723747137817,3.5976,138.96,138.94,3.6463477]
[1723747138316,8.42,139.02,138.94,0.0482477]
[1723747138819,3.597,138.99,138.94,0.0482477]
[1723747139021,8.42,139.02,138.94,0.0482477]
[1723747139425,8.42,139.02,138.96,3.5975]
[1723747139729,8.42,139.02,138.9,39.41]
[1723747139924,8.42,139.02,138.98,0.05112452]
[1723747140120,8.42,139.02,138.92,30.99]
[1723747140321,8.42,139.02,138.99,0.05257144]
[1723747140322,30.99,139.0,138.99,0.05257144]
[1723747140521,3.5974,138.97,138.94,3.5979]
[1723747140722,30.99,139.0,138.95,0.05229666]
[1723747141120,30.99,138.98,138.89,1.2486]
[1723747141329,30.99,138.98,138.96,0.05187066]
[1723747141524,3.5988,138.92,138.89,3.5993]
[1723747141718,30.99,138.96,138.87,8.42]
[1723747142218,30.99,138.96,138.86,1.277]
[1723747142424,30.99,138.96,138.82,9.7529]
[1723747142425,30.99,138.93,138.82,9.7529]
[1723747142629,30.99,138.93,138.82,11.0159]
[1723747142940,12.0447428,138.96,138.63,3.31866274]
[1723747142941,30.99,138.84,138.63,3.31866274]
[1723747143226,39.41,138.84,138.67,8.42]
[1723747143428,8.42,138.84,138.69,30.99]
[1723747143626,3.6018,138.8,138.69,30.99]
[1723747143830,34.53701576,138.85,138.72,30.99]
[1723747144025,8.42,138.84,138.73,1.2638]
[1723747144423,30.99,138.89,138.76,30.99]
[1723747144727,1.0,138.84,138.76,30.99]
[1723747145028,3.6008,138.84,138.78,3.602]
[1723747145232,0.05045245,138.8,138.78,3.602]
[1723747145436,30.99,138.94,138.79,30.99]
[1723747145630,8.42,138.92,138.82,30.99]
[1723747146333,59.77,138.99,138.87,30.99]
[1723747146334,30.99,138.99,138.87,30.99]
[1723747146731,30.99,138.97,138.85,30.99]
[1723747147035,0.05354732,138.88,138.86,0.05433421]
[1723747147239,1.0,138.98,138.87,30.99]
[1723747147441,3.5978,138.96,138.9,3.599]
[1723747147735,1.0,138.98,138.86,2.5821]
[1723747148132,3.5983,138.94,138.89,3.5994]
[1723747148331,1.0,138.98,138.86,11.0021]
[1723747148528,3.5983,138.94,138.89,3.5993]
[1723747148729,3.5983,138.94,138.9,0.05421682]
[1723747149137,3.5979,138.95,138.9,3.65321682]
[1723747149333,1.0,138.98,138.9,0.05421682]
[1723747150242,3.5981,138.94,138.9,3.65331682]
[1723747150534,3.5975,138.97,138.9,0.05421682]
[1723747150740,3.5975,138.97,138.93,3.5984]
[1723747150936,1.0,138.98,138.9,0.05421682]
[1723747151137,30.99,138.96,138.9,0.05421682]
[1723747151340,30.99,138.94,138.82,30.99]
[1723747151542,3.5997,138.88,138.8,8.4]
[1723747151841,3.5997,138.88,138.79,39.39]
[1723747152033,30.99,138.91,138.79,39.39]
[1723747152240,8.4,138.96,138.79,39.39]
[1723747152241,30.99,138.94,138.81,30.99]
[1723747152537,1.0,138.93,138.84,30.99]
[1723747152729,3.5987,138.92,138.84,30.99]
[1723747153134,4.5985,138.93,138.89,3.5994]
[1723747153336,1.0,138.93,138.87,0.05282377]
[1723747153743,3.5985,138.93,138.88,3.5996]
[1723747154041,39.39,138.96,138.87,0.05282377]
[1723747154537,39.39,138.96,138.8,1.2577]
[1723747154538,30.99,138.94,138.82,30.99]
[1723747154734,30.99,138.92,138.9,0.04759417]
[1723747154935,30.99,138.92,138.84,3.6005]
[1723747155231,30.99,138.89,138.8,1.2577]
[1723747155435,3.6004,138.86,138.81,3.6014]
[1723747155634,3.6004,138.86,138.8,1.2577]
[1723747156039,0.0465768,138.84,138.82,3.6011]
[1723747156244,0.0465768,138.84,138.82,3.64831357]
[1723747156434,0.0465768,138.84,138.82,0.04721357]
[1723747156638,0.0465768,138.84,138.82,31.03721357]
[1723747156836,0.0465768,138.84,138.83,1.3717]
[1723747157039,0.0465768,138.84,138.83,4.9727]
[1723747157339,0.0465768,138.84,138.82,0.04721357]
[1723747159038,0.0465768,138.84,138.78,8.4]
[1723747159339,0.0465768,138.84,138.74,1.2933]
[1723747159531,3.6013,138.81,138.74,1.2933]
[1723747159735,30.99,138.85,138.74,1.2933]
[1723747160344,30.99,138.83,138.74,1.2933]
[1723747160534,3.6017,138.8,138.78,0.04940685]
[1723747160735,0.05046974,138.81,138.78,0.04940685]
[1723747161734,3.6018,138.79,138.78,0.04940685]
[1723747163143,3.6016,138.8,138.78,0.04940685]
[1723747163341,0.05046974,138.81,138.78,0.04940685]
[1723747163837,0.05046974,138.81,138.78,31.03940685]
[1723747164039,3.65186974,138.81,138.78,0.04940685]
[1723747164435,0.05046974,138.81,138.78,0.04940685]
[1723747165946,3.6018,138.79,138.78,0.04940685]
[1723747166645,3.6016,138.8,138.78,0.04940685]
[1723747166847,0.05046974,138.81,138.78,0.04940685]
[1723747167551,0.05046974,138.81,138.79,3.6016]
[1723747167749,0.05046974,138.81,138.78,1.29740685]
[1723747168044,0.05046974,138.81,138.78,0.04940685]
[1723747169246,3.6016,138.8,138.78,0.04940685]
[1723747169437,0.05046974,138.81,138.78,0.04940685]
[1723747170048,3.6015,138.8,138.78,0.04940685]
[1723747170241,0.05046974,138.81,138.78,0.04940685]
[1723747170649,3.65186974,138.81,138.78,0.04940685]
[1723747170853,0.05046974,138.81,138.78,0.04940685]
[1723747171548,0.05046974,138.81,138.8,3.6015]
[1723747171748,0.05046974,138.81,138.78,0.04940685]
[1723747172250,0.05046974,138.81,138.79,3.6016]
[1723747172448,0.05046974,138.81,138.78,0.04940685]
[1723747172947,3.6017,138.79,138.78,0.04940685]
[1723747174250,0.05046974,138.81,138.78,0.04940685]
[1723747175350,0.05046974,138.81,138.72,8.4]
[1723747175649,39.39,138.82,138.69,30.99]
[1723747175842,3.6025,138.77,138.69,30.99]
[1723747176040,30.99,138.8,138.68,3.9187]
[1723747176547,30.99,138.8,138.72,3.6034]
[1723747176853,3.603,138.74,138.73,0.04900136]
[1723747177843,3.64947423,138.75,138.73,0.04900136]
[1723747178046,0.04657423,138.75,138.73,0.04900136]
[1723747178451,0.04657423,138.75,138.74,3.603]
[1723747178951,30.99,138.84,138.73,0.04900136]
[1723747179151,30.99,138.82,138.73,0.04900136]
[1723747179343,40.8582572,138.85,138.73,0.04900136]
[1723747179344,30.99,138.84,138.73,30.99]
[1723747179546,3.6014,138.81,138.73,30.99]
[1723747180255,0.0541972,138.78,138.77,3.6022]
[1723747180752,8.42,138.85,138.78,3.6019]
[1723747180956,0.05093644,138.79,138.78,3.6019]
[1723747181153,0.05093644,138.79,138.77,1.3832]
[1723747181455,30.99,138.84,138.77,1.3832]
[1723747181755,0.04866623,138.79,138.77,1.43333322]
[1723747181953,3.6013,138.81,138.77,1.43333322]
[1723747182148,0.04576788,138.82,138.77,5.03543322]
[1723747182348,31.03576788,138.82,138.77,0.05013322]
[1723747183254,30.99,138.8,138.77,0.05013322]
[1723747183553,30.99,138.8,138.66,8.4]
[1723747183743,30.99,138.76,138.69,1.3509]
[1723747183943,3.6029,138.75,138.69,1.3509]
[1723747184147,30.99,138.76,138.69,1.3509]
[1723747184554,3.6029,138.75,138.69,1.3509]
[1723747184751,0.04592952,138.74,138.71,0.04662842]
[1723747185054,39.39,138.85,138.71,3.61971525]
[1723747185349,39.39,138.85,138.72,30.99]
[1723747185556,3.601,138.82,138.74,30.99]
[1723747185854,39.39,138.85,138.74,30.99]
[1723747186062,3.6012,138.82,138.74,30.99]
[1723747186355,0.05403416,138.81,138.78,0.04832185]
[1723747186754,3.6015,138.8,138.78,0.04832185]
[1723747186951,0.05403416,138.81,138.78,3.65032185]
[1723747187153,0.05403416,138.81,138.78,0.04832185]
[1723747188159,3.6017,138.79,138.78,0.04832185]
[1723747188549,0.05403416,138.81,138.78,0.04832185]
[1723747188758,3.6016,138.8,138.78,0.04832185]
[1723747189456,3.65533416,138.81,138.78,0.04832185]
[1723747189950,0.05403416,138.81,138.79,3.6017]
[1723747190459,0.05403416,138.81,138.78,0.04832185]
[1723747190661,3.6015,138.8,138.78,0.04832185]
[1723747191156,3.6015,138.8,138.72,8.4]
[1723747191157,51.88,138.8,138.72,8.4]
[1723747191356,25.94,138.78,138.67,8.4]
[1723747191556,25.94,138.75,138.67,8.4]
[1723747191762,25.94,138.75,138.7,3.6039]
[1723747191963,31.16,138.76,138.7,3.6039]
[1723747192161,31.16,138.76,138.72,0.05046354]
[1723747192360,0.04690509,138.74,138.72,0.05046354]
[1723747192560,3.6023,138.77,138.73,3.6033]
[1723747192757,0.04804475,138.74,138.72,0.04814587]
[1723747192957,31.16,138.79,138.72,0.04814587]
[1723747193162,0.05241675,138.74,138.72,0.04814587]
[1723747193359,31.16,138.79,138.72,0.04814587]
[1723747193562,0.05069918,138.74,138.72,0.04814587]
[1723747193762,31.16,138.79,138.73,3.6031]
[1723747193763,3.6023,138.77,138.73,3.6031]
[1723747194060,0.04841078,138.74,138.72,0.04814587]
[1723747194254,31.16,138.84,138.72,0.04814587]
[1723747194462,31.16,138.84,138.71,31.16]
[1723747194763,3.6015,138.8,138.73,8.4]
[1723747195167,31.16,138.84,138.73,8.4]
[1723747195353,0.05479955,138.78,138.76,3.6024]
[1723747195769,31.16,138.79,138.65,15.6108]
[1723747196061,3.604,138.71,138.68,6.244]
[1723747196261,3.604,138.71,138.68,2.6395]
[1723747196469,0.05113525,138.71,138.69,1.39888741]
[1723747197667,0.05113525,138.71,138.69,5.00308741]
[1723747198972,0.05113525,138.71,138.7,3.6041]
[1723747199270,3.603,138.75,138.69,1.39888741]
[1723747199468,31.16,138.8,138.71,3.6037]
[1723747199865,31.16,138.8,138.69,1.3509]
[1723747200065,31.16,138.77,138.69,1.3509]
[1723747200262,31.16,138.77,138.7,3.6039]
[1723747200465,3.65700898,138.74,138.72,0.05344648]
[1723747200661,0.05370898,138.74,138.72,0.05344648]
[1723747200862,3.6033,138.73,138.72,0.05344648]
[1723747201064,0.05370898,138.74,138.72,0.05344648]
[1723747201470,3.6033,138.73,138.72,0.05344648]
[1723747201769,0.05370898,138.74,138.72,0.05344648]
[1723747202166,3.65690898,138.74,138.72,0.05344648]
[1723747202368,0.05370898,138.74,138.72,0.05344648]
[1723747202671,3.6033,138.73,138.72,0.05344648]
[1723747204770,3.6038,138.72,138.69,4.94864648]
[1723747205079,31.16,138.83,138.71,31.16]
[1723747205268,31.16,138.83,138.71,43.12870653]
[1723747205468,3.6031,138.74,138.71,12.0038]
[1723747205668,31.16,138.79,138.71,8.4]
[1723747205968,3.6028,138.75,138.72,3.6034]
[1723747206175,3.6028,138.75,138.74,0.05362547]
[1723747208276,34.81063269,138.76,138.74,0.05362547]
[1723747208578,0.04803269,138.76,138.74,0.05362547]
[1723747208976,0.04803269,138.76,138.75,3.6028]
[1723747209178,31.16,138.83,138.74,0.05362547]
[1723747209380,3.601,138.82,138.79,3.6016]
[1723747209691,2.4529,138.85,138.73,31.16]
[1723747209878,31.16,138.83,138.71,8.4]
[1723747210380,31.16,138.85,138.76,0.04597156]
[1723747210883,31.16,138.83,138.72,2.635]
[1723747211079,31.16,138.83,138.79,0.04725512]
[1723747211080,3.6016,138.8,138.79,0.04725512]
[1723747211478,31.16,138.83,138.72,2.635]
[1723747211781,3.6019,138.79,138.78,0.05374962]
[1723747212374,3.6016,138.8,138.78,0.05374962]
[1723747212672,31.16,138.83,138.78,0.05374962]
[1723747212870,3.6016,138.8,138.78,0.05374962]
[1723747213074,31.16,138.83,138.78,0.05374962]
[1723747213278,31.16,138.8,138.78,0.05374962]
[1723747213479,3.6017,138.8,138.78,0.05374962]
[1723747213683,31.16,138.83,138.78,0.05374962]
[1723747214077,3.6017,138.79,138.78,0.05374962]
[1723747214372,1.0,138.84,138.78,0.05374962]
[1723747214975,3.6017,138.79,138.78,0.05374962]
[1723747216179,25.94,138.82,138.78,0.05374962]
[1723747216385,26.94,138.84,138.78,0.05374962]
[1723747216584,26.94,138.84,138.78,3.65564962]
[1723747216785,3.6014,138.81,138.78,3.65564962]
[1723747216982,26.94,138.84,138.78,3.65564962]
[1723747217181,26.94,138.84,138.78,0.05374962]
[1723747217182,3.6014,138.81,138.78,0.05374962]
[1723747217377,26.94,138.84,138.78,0.05374962]
[1723747217583,25.94,138.82,138.78,0.05374962]
[1723747217881,3.6017,138.79,138.78,0.05374962]
[1723747218786,25.94,138.8,138.7,8.38]
[1723747218787,51.88,138.8,138.7,8.38]
[1723747218989,25.94,138.77,138.7,8.38]
[1723747219293,3.6037,138.72,138.66,1.3568]
[1723747219591,25.94,138.74,138.66,1.3568]
[1723747219789,3.6037,138.72,138.69,3.6043]
[1723747219989,0.04668388,138.72,138.7,0.05262871]
[1723747220382,0.04668388,138.72,138.7,3.65652871]
[1723747220785,3.65048388,138.72,138.7,0.05262871]
[1723747220986,0.04668388,138.72,138.7,0.05262871]
[1723747221393,3.65038388,138.72,138.7,0.05262871]
[1723747222386,25.98668388,138.72,138.61,25.94]
[1723747222696,25.94,138.74,138.63,25.94]
[1723747223392,1.0,138.73,138.63,25.94]
[1723747223590,0.05345974,138.7,138.67,0.04616186]
[1723747223983,0.05345974,138.7,138.68,3.6044]
[1723747225088,0.05345974,138.7,138.67,0.04616186]
[1723747225487,3.65765974,138.7,138.67,0.04616186]
[1723747225797,0.05345974,138.7,138.67,0.04616186]
[1723747225994,3.6045,138.69,138.67,0.04616186]
[1723747226492,3.6046,138.68,138.67,0.04616186]
[1723747227896,3.6055,138.65,138.6,2.7293]
[1723747228091,1.2761,138.71,138.6,1.3458]
[1723747228092,25.94,138.67,138.6,1.3458]
[1723747228294,25.94,138.67,138.56,27.2478]
[1723747228887,0.04691186,138.63,138.6,0.04955122]
[1723747230297,25.98691186,138.63,138.6,0.04955122]
[1723747230597,0.04691186,138.63,138.6,0.04955122]
[1723747231208,0.04691186,138.63,138.62,3.6061]
[1723747231702,3.6045,138.69,138.65,3.6052]
[1723747232097,9.5622,138.72,138.6,29.4981457]
[1723747232300,1.1822,138.72,138.6,29.4981457]
[1723747232496,1.1822,138.72,138.62,25.94]
[1723747232697,1.1822,138.72,138.63,2.6575]
[1723747233098,0.04657917,138.68,138.66,0.05190482]
[1723747233599,0.04657917,138.68,138.67,3.6048]
[1723747234700,0.04657917,138.68,138.66,3.65700482]
[1723747234898,0.04657917,138.68,138.66,0.05190482]
[1723747235298,0.04657917,138.68,138.67,3.6048]
[1723747235699,1.255,138.76,138.67,3.6048]
[1723747235700,4.8577,138.76,138.72,3.6033]
[1723747235909,34.32,138.77,138.72,3.6033]
[1723747236198,2.5498,138.79,138.76,3.6024]
[1723747236199,25.94,138.79,138.76,3.6024]
[1723747236397,3.6016,138.8,138.76,3.6024]
[1723747236600,82.9866958,138.82,138.76,3.6024]
[1723747236903,0.04809959,138.79,138.77,0.04962265]
[1723747237312,0.04809959,138.79,138.77,3.65172265]
[1723747237600,0.04809959,138.79,138.77,0.04962265]
[1723747238301,3.64999959,138.79,138.77,0.04962265]
[1723747239294,0.04809959,138.79,138.77,0.04962265]
[1723747239696,25.94,138.88,138.77,34.36962265]
[1723747239895,3.6001,138.86,138.81,3.601]
[1723747240299,25.94,138.88,138.81,3.601]
[1723747240501,25.94,138.88,138.79,25.94]
[1723747240807,1.2891,138.89,138.79,25.94]
[1723747240808,1.2891,138.89,138.79,27.1951]
[1723747241001,3.5992,138.89,138.85,3.6001]
[1723747241202,25.94,138.93,138.82,0.05218678]
[1723747241601,25.94,138.88,138.82,0.05218678]
[1723747241805,25.94,138.86,138.8,1.2549]
[1723747242008,3.5995,138.88,138.84,3.6004]
[1723747242207,3.5995,138.88,138.84,3.64946168]
[1723747242604,3.5999,138.86,138.84,0.04906168]
[1723747242803,25.94,138.89,138.84,0.04906168]
[1723747243309,3.5997,138.87,138.84,0.04906168]
[1723747244404,3.6002,138.85,138.84,0.04906168]
[1723747245109,3.6013,138.81,138.77,8.34]
[1723747245311,3.54376355,138.87,138.74,1.3405]
[1723747245312,25.94,138.8,138.74,1.3405]
[1723747245505,25.94,138.79,138.74,1.3405]
[1723747245707,25.94,138.8,138.75,3.6025]
[1723747246207,3.6027,138.76,138.71,1.2996]
[1723747246404,25.94,138.78,138.76,0.05092155]
[1723747246606,25.94,138.78,138.7,8.34]
[1723747246805,25.94,138.78,138.68,2.685]
[1723747246806,25.94,138.74,138.68,2.685]
[1723747247204,25.94,138.74,138.73,0.05031248]
[1723747247408,3.6514492,138.72,138.68,2.685]
[1723747247609,0.0477492,138.72,138.68,2.685]
[1723747247806,3.6034,138.73,138.68,2.685]
[1723747248110,3.6034,138.73,138.69,3.65627311]
[1723747248111,0.04924224,138.71,138.69,3.65627311]
[1723747248706,0.04924224,138.71,138.69,0.05217311]
[1723747250311,0.04924224,138.71,138.7,3.6041]
[1723747250507,0.04924224,138.71,138.69,0.05217311]
[1723747251415,0.04924224,138.71,138.69,3.65637311]
[1723747251606,0.04924224,138.71,138.69,0.05217311]
[1723747252306,0.04924224,138.71,138.69,3.65647311]
[1723747252609,0.04924224,138.71,138.69,0.05217311]
[1723747252808,3.65314224,138.71,138.69,0.05217311]
[1723747253905,3.6041,138.7,138.69,0.05217311]
[1723747254607,0.04924224,138.71,138.69,0.05217311]
[1723747255214,3.65314224,138.71,138.69,0.05217311]
[1723747255603,3.6041,138.7,138.69,0.05217311]
[1723747257416,3.65314224,138.71,138.69,0.05217311]
[1723747258813,0.04924224,138.71,138.69,0.05217311]
[1723747260413,3.6041,138.7,138.69,0.05217311]
[1723747260620,31.16924224,138.71,138.61,2.5528]
[1723747260919,31.12,138.71,138.61,2.5528]
[1723747261315,31.12,138.71,138.64,3.6055]
[1723747261911,3.6048,138.68,138.66,0.04793345]
[1723747262109,0.05302035,138.69,138.66,0.04793345]
[1723747262314,3.6048,138.68,138.66,0.04793345]
[1723747262711,0.05302035,138.69,138.66,0.04793345]
[1723747262915,3.6048,138.67,138.66,0.04793345]
[1723747263619,31.12,138.67,138.58,3.6329816]
[1723747263811,31.12,138.67,138.56,1.317]
[1723747263812,31.12,138.67,138.57,1.2615]
[1723747264418,31.12,138.67,138.6,3.6065]
[1723747264618,3.6058,138.64,138.57,4.92728912]
[1723747264818,31.12,138.67,138.6,3.6065]
[1723747265118,3.6058,138.64,138.62,0.04548974]
[1723747265314,0.05157523,138.65,138.62,0.04548974]
[1723747266215,3.65707523,138.65,138.62,0.04548974]
[1723747267023,3.65707523,138.65,138.62,3.65158974]
[1723747267226,0.05157523,138.65,138.62,0.04548974]
[1723747267423,0.05157523,138.65,138.64,3.6056]
[1723747267621,0.05157523,138.65,138.63,1.2982]
[1723747268018,0.05157523,138.65,138.63,4.9039]
[1723747268722,0.05157523,138.65,138.64,3.6056]
[1723747269115,0.05157523,138.65,138.64,4.8865]
[1723747269327,3.6044,138.69,138.66,3.6051]
[1723747269527,3.6044,138.69,138.64,1.2809]
[1723747269920,3.6044,138.69,138.65,3.6052]
[1723747270220,1.3024,138.75,138.65,3.6052]
[1723747270221,25.95,138.75,138.65,25.95]
[1723747270425,25.95,138.77,138.66,34.27]
[1723747270623,0.0509849,138.68,138.66,8.37050765]
[1723747270822,32.17048163,138.8,138.69,25.95]
[1723747271022,3.6031,138.74,138.7,2.6718]
[1723747271230,25.95,138.75,138.7,2.6718]
[1723747271623,3.6034,138.73,138.7,2.6718]
[1723747271824,8.32,138.84,138.76,3.6023]
[1723747272021,8.32,138.84,138.72,3.5595389]
[1723747272022,25.95,138.81,138.72,3.5595389]
[1723747272225,3.6018,138.79,138.7,28.6218]
[1723747272423,0.04622862,138.74,138.71,0.05467236]
[1723747272732,0.04622862,138.74,138.72,8.32]
[1723747273030,25.95,138.79,138.72,8.32]
[1723747273226,0.05101017,138.74,138.72,8.37239021]
[1723747273417,25.95,138.81,138.75,3.6026]
[1723747273828,25.95,138.81,138.72,11.88876185]
[1723747274324,25.95,138.85,138.75,25.95]
[1723747274525,25.95,138.85,138.8,3.6013]
[1723747274732,25.95,138.85,138.75,25.95]
[1723747274929,25.95,138.85,138.75,26.00349072]